fUST/lending_fUST_20260523
["ID","MTS","AMOUNT","RATE_DAILY","PERIOD"]
[422831179,1779489038000,-152.135008,8.219e-05,2]
[422831170,1779489038000,-152.135008,8.219e-05,2]
[422831172,1779489038000,-152.135008,8.219e-05,2]
[422831169,1779489038000,-500.0,8.218e-05,2]
[422831171,1779489038000,-152.135008,8.219e-05,2]
[422831174,1779489038000,-152.135008,8.219e-05,2]
[422831164,1779489038000,-444.9268918,8.218e-05,2]
[422831167,1779489038000,-500.0,8.218e-05,2]
[422831166,1779489038000,-500.0,8.218e-05,2]
[422831165,1779489038000,-500.0,8.218e-05,2]
[422831163,1779489038000,-500.0,8.218e-05,2]
[422831225,1779489039000,-500.0,8.219e-05,2]
[422831223,1779489039000,-1314.02,8.219e-05,2]
[422831224,1779489039000,-500.0,8.219e-05,2]
[422831222,1779489039000,-500.0,8.219e-05,2]
[422831221,1779489039000,-500.0,8.219e-05,2]
[422831220,1779489039000,-997.46,8.219e-05,2]
[422831227,1779489039000,-500.0,8.219e-05,2]
[422831217,1779489039000,-500.0,8.219e-05,2]
[422831214,1779489039000,-580.51,8.219e-05,2]
[422831218,1779489039000,-531.18,8.219e-05,2]
[422831216,1779489039000,-500.0,8.219e-05,2]
[422831226,1779489039000,-500.0,8.219e-05,2]
[422831219,1779489039000,-500.0,8.219e-05,2]
[422831229,1779489039000,-151.0,8.219e-05,2]
[422831237,1779489039000,-500.0,8.219e-05,2]
[422831230,1779489039000,-151.0,8.219e-05,2]
[422831232,1779489039000,-151.0,8.219e-05,2]
[422831233,1779489039000,-151.0,8.219e-05,2]
[422831235,1779489039000,-151.0,8.219e-05,2]
[422831234,1779489039000,-500.0,8.219e-05,2]
[422831238,1779489039000,-179.825869,8.219e-05,2]
[422831236,1779489039000,-500.0,8.219e-05,2]
[422831239,1779489039000,-500.0,8.219e-05,2]
[422831240,1779489039000,-500.0,8.219e-05,2]
[422831231,1779489039000,-151.0,8.219e-05,2]
[422831242,1779489039000,-632.98,8.219e-05,2]
[422831241,1779489039000,-500.0,8.219e-05,2]
[422831215,1779489039000,-500.0,8.219e-05,2]
[422831228,1779489039000,-500.0,8.219e-05,2]
[422831210,1779489039000,-1104.17,8.219e-05,2]
[422831189,1779489039000,-4925.3611767,8.219e-05,2]
[422831212,1779489039000,-500.0,8.219e-05,2]
[422831243,1779489039000,-500.0,8.219e-05,2]
[422831183,1779489039000,-152.135008,8.219e-05,2]
[422831187,1779489039000,-152.135008,8.219e-05,2]
[422831184,1779489039000,-152.135008,8.219e-05,2]
[422831185,1779489039000,-152.135008,8.219e-05,2]
[422831186,1779489039000,-152.135008,8.219e-05,2]
[422831188,1779489039000,-152.135008,8.219e-05,2]
[422831190,1779489039000,-500.0,8.219e-05,2]
[422831192,1779489039000,-907.41,8.219e-05,2]
[422831191,1779489039000,-500.0,8.219e-05,2]
[422831193,1779489039000,-500.0,8.219e-05,2]
[422831195,1779489039000,-500.0,8.219e-05,2]
[422831194,1779489039000,-500.0,8.219e-05,2]
[422831211,1779489039000,-500.0,8.219e-05,2]
[422831196,1779489039000,-500.0,8.219e-05,2]
[422831199,1779489039000,-500.0,8.219e-05,2]
[422831200,1779489039000,-531.75,8.219e-05,2]
[422831198,1779489039000,-686.18,8.219e-05,2]
[422831202,1779489039000,-686.4,8.219e-05,2]
[422831201,1779489039000,-500.0,8.219e-05,2]
[422831203,1779489039000,-500.0,8.219e-05,2]
[422831205,1779489039000,-755.01,8.219e-05,2]
[422831204,1779489039000,-500.0,8.219e-05,2]
[422831206,1779489039000,-500.0,8.219e-05,2]
[422831207,1779489039000,-500.0,8.219e-05,2]
[422831208,1779489039000,-500.0,8.219e-05,2]
[422831209,1779489039000,-500.0,8.219e-05,2]
[422831213,1779489039000,-573.62,8.219e-05,2]
[422831197,1779489039000,-729.95,8.219e-05,2]
[422831245,1779489039000,-500.0,8.219e-05,2]
[422831306,1779489039000,-573.16,8.219e-05,2]
[422831246,1779489039000,-883.61,8.219e-05,2]
[422831280,1779489039000,-523.05,8.219e-05,2]
[422831282,1779489039000,-500.0,8.219e-05,2]
[422831281,1779489039000,-500.0,8.219e-05,2]
[422831279,1779489039000,-1045.96,8.219e-05,2]
[422831285,1779489039000,-878.91,8.219e-05,2]
[422831286,1779489039000,-500.0,8.219e-05,2]
[422831287,1779489039000,-704.99,8.219e-05,2]
[422831284,1779489039000,-500.0,8.219e-05,2]
[422831288,1779489039000,-1621.75,8.219e-05,2]
[422831283,1779489039000,-500.0,8.219e-05,2]
[422831289,1779489039000,-151.0,8.219e-05,2]
[422831290,1779489039000,-151.0,8.219e-05,2]
[422831291,1779489039000,-151.0,8.219e-05,2]
[422831277,1779489039000,-427.86150411,8.219e-05,2]
[422831292,1779489039000,-151.0,8.219e-05,2]
[422831293,1779489039000,-500.0,8.219e-05,2]
[422831295,1779489039000,-500.0,8.219e-05,2]
[422831298,1779489039000,-1128.82,8.219e-05,2]
[422831297,1779489039000,-500.0,8.219e-05,2]
[422831301,1779489039000,-788.46,8.219e-05,2]
[422831299,1779489039000,-500.0,8.219e-05,2]
[422831300,1779489039000,-500.0,8.219e-05,2]
[422831302,1779489039000,-659.24,8.219e-05,2]
[422831303,1779489039000,-500.0,8.219e-05,2]
[422831304,1779489039000,-536.4,8.219e-05,2]
[422831307,1779489039000,-151.0,8.219e-05,2]
[422831305,1779489039000,-151.0,8.219e-05,2]
[422831244,1779489039000,-844.53,8.219e-05,2]
[422831294,1779489039000,-500.0,8.219e-05,2]
[422831278,1779489039000,-2245.14,8.219e-05,2]
[422831296,1779489039000,-500.0,8.219e-05,2]
[422831272,1779489039000,-200.0,8.219e-05,2]
[422831247,1779489039000,-500.0,8.219e-05,2]
[422831276,1779489039000,-596.10476254,8.219e-05,2]
[422831250,1779489039000,-845.39,8.219e-05,2]
[422831249,1779489039000,-500.0,8.219e-05,2]
[422831248,1779489039000,-500.0,8.219e-05,2]
[422831251,1779489039000,-549.16,8.219e-05,2]
[422831254,1779489039000,-500.0,8.219e-05,2]
[422831255,1779489039000,-500.0,8.219e-05,2]
[422831253,1779489039000,-725.24,8.219e-05,2]
[422831261,1779489039000,-200.0,8.219e-05,2]
[422831263,1779489039000,-200.0,8.219e-05,2]
[422831259,1779489039000,-200.0,8.219e-05,2]
[422831258,1779489039000,-200.0,8.219e-05,2]
[422831257,1779489039000,-200.0,8.219e-05,2]
[422831252,1779489039000,-177.26225668,8.219e-05,2]
[422831256,1779489039000,-500.0,8.219e-05,2]
[422831273,1779489039000,-200.0,8.219e-05,2]
[422831260,1779489039000,-200.0,8.219e-05,2]
[422831275,1779489039000,-500.0,8.219e-05,2]
[422831269,1779489039000,-500.0,8.219e-05,2]
[422831270,1779489039000,-500.0,8.219e-05,2]
[422831268,1779489039000,-200.0,8.219e-05,2]
[422831274,1779489039000,-200.0,8.219e-05,2]
[422831266,1779489039000,-200.0,8.219e-05,2]
[422831265,1779489039000,-200.0,8.219e-05,2]
[422831264,1779489039000,-200.0,8.219e-05,2]
[422831262,1779489039000,-200.0,8.219e-05,2]
[422831267,1779489039000,-200.0,8.219e-05,2]
[422831271,1779489039000,-200.0,8.219e-05,2]
[422831333,1779489040000,-151.0,8.219e-05,2]
[422831330,1779489040000,-151.0,8.219e-05,2]
[422831343,1779489040000,-500.0,8.219e-05,2]
[422831335,1779489040000,-151.0,8.219e-05,2]
[422831332,1779489040000,-151.0,8.219e-05,2]
[422831341,1779489040000,-164.24804076,8.219e-05,2]
[422831344,1779489040000,-500.0,8.219e-05,2]
[422831346,1779489040000,-500.0,8.219e-05,2]
[422831347,1779489040000,-500.0,8.219e-05,2]
[422831352,1779489040000,-500.0,8.219e-05,2]
[422831342,1779489040000,-1457.72,8.219e-05,2]
[422831348,1779489040000,-500.0,8.219e-05,2]
[422831350,1779489040000,-500.0,8.219e-05,2]
[422831351,1779489040000,-500.0,8.219e-05,2]
[422831353,1779489040000,-500.0,8.219e-05,2]
[422831349,1779489040000,-500.0,8.219e-05,2]
[422831361,1779489040000,-500.0,8.219e-05,2]
[422831334,1779489040000,-201.567722,8.219e-05,2]
[422831364,1779489040000,-235.92655581,8.219e-05,2]
[422831345,1779489040000,-500.0,8.219e-05,2]
[422831340,1779489040000,-578.38195924,8.219e-05,2]
[422831315,1779489040000,-151.0,8.219e-05,2]
[422831338,1779489040000,-500.0,8.219e-05,2]
[422831363,1779489040000,-793.75,8.219e-05,2]
[422831308,1779489040000,-151.0,8.219e-05,2]
[422831309,1779489040000,-151.0,8.219e-05,2]
[422831310,1779489040000,-151.0,8.219e-05,2]
[422831311,1779489040000,-151.0,8.219e-05,2]
[422831312,1779489040000,-151.0,8.219e-05,2]
[422831314,1779489040000,-500.0,8.219e-05,2]
[422831313,1779489040000,-151.0,8.219e-05,2]
[422831317,1779489040000,-133.07892527,8.219e-05,2]
[422831319,1779489040000,-151.0,8.219e-05,2]
[422831318,1779489040000,-17.92107473,8.219e-05,2]
[422831320,1779489040000,-151.0,8.219e-05,2]
[422831323,1779489040000,-151.0,8.219e-05,2]
[422831325,1779489040000,-165.151558,8.219e-05,2]
[422831328,1779489040000,-151.0,8.219e-05,2]
[422831327,1779489040000,-151.0,8.219e-05,2]
[422831336,1779489040000,-153.037562,8.219e-05,2]
[422831337,1779489040000,-1016.91,8.219e-05,2]
[422831339,1779489040000,-500.0,8.219e-05,2]
[422831331,1779489040000,-500.0,8.219e-05,2]
[422831365,1779489040000,-500.0,8.219e-05,2]
[422831316,1779489040000,-151.0,8.219e-05,2]
[422831359,1779489040000,-500.0,8.219e-05,2]
[422831382,1779489040000,-2040.39,8.219e-05,2]
[422831386,1779489040000,-288.30817495,8.219e-05,2]
[422831383,1779489040000,-500.0,8.219e-05,2]
[422831384,1779489040000,-500.0,8.219e-05,2]
[422831381,1779489040000,-500.0,8.219e-05,2]
[422831391,1779489040000,-500.0,8.219e-05,2]
[422831385,1779489040000,-500.0,8.219e-05,2]
[422831387,1779489040000,-500.0,8.219e-05,2]
[422831394,1779489040000,-363.49001502,8.219e-05,2]
[422831392,1779489040000,-500.0,8.219e-05,2]
[422831393,1779489040000,-500.0,8.219e-05,2]
[422831395,1779489040000,-500.0,8.219e-05,2]
[422831396,1779489040000,-500.0,8.219e-05,2]
[422831400,1779489040000,-836.32,8.219e-05,2]
[422831402,1779489040000,-360.43747515,8.219e-05,2]
[422831398,1779489040000,-942.91,8.219e-05,2]
[422831401,1779489040000,-139.56252485,8.219e-05,2]
[422831399,1779489040000,-4232.49,8.219e-05,2]
[422831397,1779489040000,-554.92,8.219e-05,2]
[422831379,1779489040000,-2113.71,8.219e-05,2]
[422831390,1779489040000,-640.29325094,8.219e-05,2]
[422831403,1779489040000,-476.29423182,8.219e-05,2]
[422831389,1779489040000,-1519.78674906,8.219e-05,2]
[422831380,1779489040000,-569.67,8.219e-05,2]
[422831356,1779489040000,-500.0,8.219e-05,2]
[422831355,1779489040000,-500.0,8.219e-05,2]
[422831354,1779489040000,-500.0,8.219e-05,2]
[422831357,1779489040000,-758.89,8.219e-05,2]
[422831360,1779489040000,-500.0,8.219e-05,2]
[422831358,1779489040000,-500.0,8.219e-05,2]
[422831366,1779489040000,-500.0,8.219e-05,2]
[422831367,1779489040000,-1279.0,8.219e-05,2]
[422831377,1779489040000,-500.0,8.219e-05,2]
[422831362,1779489040000,-500.0,8.219e-05,2]
[422831375,1779489040000,-500.0,8.219e-05,2]
[422831368,1779489040000,-500.0,8.219e-05,2]
[422831378,1779489040000,-500.0,8.219e-05,2]
[422831369,1779489040000,-743.54,8.219e-05,2]
[422831371,1779489040000,-500.0,8.219e-05,2]
[422831373,1779489040000,-500.0,8.219e-05,2]
[422831374,1779489040000,-1078.28,8.219e-05,2]
[422831372,1779489040000,-1411.21,8.219e-05,2]
[422831370,1779489040000,-500.0,8.219e-05,2]
[422831376,1779489040000,-500.0,8.219e-05,2]
[422831388,1779489040000,-500.0,8.219e-05,2]
[422831406,1779489041000,-500.0,8.219e-05,2]
[422831405,1779489041000,-698.87576818,8.219e-05,2]
[422831407,1779489041000,-500.0,8.219e-05,2]
[422831408,1779489041000,-77.25781226,8.219e-05,2]
[422831447,1779489047000,-705.32,8.219e-05,2]
[422831444,1779489047000,-458.49000212,8.219e-05,2]
[422831445,1779489047000,-500.0,8.219e-05,2]
[422831451,1779489047000,-500.0,8.219e-05,2]
[422831450,1779489047000,-645.54,8.219e-05,2]
[422831449,1779489047000,-500.0,8.219e-05,2]
[422831452,1779489047000,-500.0,8.219e-05,2]
[422831453,1779489047000,-551.33,8.219e-05,2]
[422831461,1779489047000,-500.0,8.219e-05,2]
[422831455,1779489047000,-500.0,8.219e-05,2]
[422831456,1779489047000,-500.0,8.219e-05,2]
[422831467,1779489047000,-500.0,8.219e-05,2]
[422831466,1779489047000,-2490.82,8.219e-05,2]
[422831446,1779489047000,-659.68,8.219e-05,2]
[422831457,1779489047000,-826.58,8.219e-05,2]
[422831464,1779489047000,-931.19,8.219e-05,2]
[422831460,1779489047000,-943.67,8.219e-05,2]
[422831454,1779489047000,-507.82,8.219e-05,2]
[422831448,1779489047000,-1000.0,8.219e-05,2]
[422831437,1779489047000,-3177.51905819,8.219e-05,2]
[422831442,1779489047000,-500.0,8.219e-05,2]
[422831462,1779489047000,-500.0,8.219e-05,2]
[422831425,1779489047000,-571.38218774,8.219e-05,2]
[422831424,1779489047000,-198.57804001,8.055e-05,2]
[422831426,1779489047000,-1223.25,8.219e-05,2]
[422831427,1779489047000,-500.0,8.219e-05,2]
[422831428,1779489047000,-741.03,8.219e-05,2]
[422831430,1779489047000,-505.25,8.219e-05,2]
[422831438,1779489047000,-522.08,8.219e-05,2]
[422831432,1779489047000,-709.38,8.219e-05,2]
[422831431,1779489047000,-1854.49,8.219e-05,2]
[422831433,1779489047000,-840.52,8.219e-05,2]
[422831439,1779489047000,-683.69,8.219e-05,2]
[422831440,1779489047000,-598.12,8.219e-05,2]
[422831441,1779489047000,-500.0,8.219e-05,2]
[422831435,1779489047000,-312.14967015,8.219e-05,2]
[422831436,1779489047000,-601.61094181,8.219e-05,2]
[422831434,1779489047000,-801.14,8.219e-05,2]
[422831443,1779489047000,-874.65,8.219e-05,2]
[422831429,1779489047000,-1971.47,8.219e-05,2]
[422831459,1779489047000,-952.0,8.219e-05,2]
[422831465,1779489047000,-504.3,8.219e-05,2]
[422831485,1779489047000,-774.7,8.219e-05,2]
[422831492,1779489047000,-472.47738368,8.219e-05,2]
[422831487,1779489047000,-478.92634538,8.219e-05,2]
[422831494,1779489047000,-1734.66,8.219e-05,2]
[422831490,1779489047000,-856.39,8.219e-05,2]
[422831486,1779489047000,-776.05,8.219e-05,2]
[422831496,1779489047000,-500.0,8.219e-05,2]
[422831495,1779489047000,-500.0,8.219e-05,2]
[422831500,1779489047000,-500.0,8.219e-05,2]
[422831498,1779489047000,-1696.91,8.219e-05,2]
[422831497,1779489047000,-628.43,8.219e-05,2]
[422831501,1779489047000,-536.75,8.219e-05,2]
[422831503,1779489047000,-500.0,8.219e-05,2]
[422831504,1779489047000,-1855.54,8.219e-05,2]
[422831505,1779489047000,-694.83,8.219e-05,2]
[422831502,1779489047000,-734.15,8.219e-05,2]
[422831458,1779489047000,-500.0,8.219e-05,2]
[422831484,1779489047000,-500.0,8.219e-05,2]
[422831488,1779489047000,-500.0,8.219e-05,2]
[422831499,1779489047000,-611.37,8.219e-05,2]
[422831493,1779489047000,-500.0,8.219e-05,2]
[422831463,1779489047000,-818.11,8.219e-05,2]
[422831491,1779489047000,-500.0,8.219e-05,2]
[422831468,1779489047000,-1345.76,8.219e-05,2]
[422831470,1779489047000,-500.0,8.219e-05,2]
[422831471,1779489047000,-500.0,8.219e-05,2]
[422831469,1779489047000,-500.0,8.219e-05,2]
[422831472,1779489047000,-865.98,8.219e-05,2]
[422831477,1779489047000,-151.0,8.219e-05,2]
[422831474,1779489047000,-500.0,8.219e-05,2]
[422831479,1779489047000,-717.89,8.219e-05,2]
[422831480,1779489047000,-154.14824,8.219e-05,2]
[422831489,1779489047000,-832.85,8.219e-05,2]
[422831482,1779489047000,-919.38,8.219e-05,2]
[422831478,1779489047000,-151.0,8.219e-05,2]
[422831476,1779489047000,-151.0,8.219e-05,2]
[422831483,1779489047000,-1117.15,8.219e-05,2]
[422831481,1779489047000,-500.0,8.219e-05,2]
[422831473,1779489047000,-500.0,8.219e-05,2]
[422831475,1779489047000,-500.0,8.219e-05,2]
[422831539,1779489048000,-242.227629,8.219e-05,2]
[422831529,1779489048000,-242.227629,8.219e-05,2]
[422831531,1779489048000,-242.227629,8.219e-05,2]
[422831533,1779489048000,-242.227629,8.219e-05,2]
[422831534,1779489048000,-242.227629,8.219e-05,2]
[422831535,1779489048000,-242.227629,8.219e-05,2]
[422831532,1779489048000,-242.227629,8.219e-05,2]
[422831537,1779489048000,-242.227629,8.219e-05,2]
[422831541,1779489048000,-242.227629,8.219e-05,2]
[422831540,1779489048000,-242.227629,8.219e-05,2]
[422831546,1779489048000,-242.227629,8.219e-05,2]
[422831544,1779489048000,-242.227629,8.219e-05,2]
[422831548,1779489048000,-242.227629,8.219e-05,2]
[422831542,1779489048000,-242.227629,8.219e-05,2]
[422831538,1779489048000,-242.227629,8.219e-05,2]
[422831547,1779489048000,-242.227629,8.219e-05,2]
[422831549,1779489048000,-242.227637,8.219e-05,2]
[422831543,1779489048000,-242.227629,8.219e-05,2]
[422831551,1779489048000,-500.0,8.219e-05,2]
[422831530,1779489048000,-500.0,8.219e-05,2]
[422831545,1779489048000,-242.227629,8.219e-05,2]
[422831528,1779489048000,-500.0,8.219e-05,2]
[422831510,1779489048000,-500.0,8.219e-05,2]
[422831536,1779489048000,-500.0,8.219e-05,2]
[422831506,1779489048000,-500.0,8.219e-05,2]
[422831507,1779489048000,-500.0,8.219e-05,2]
[422831508,1779489048000,-500.0,8.219e-05,2]
[422831509,1779489048000,-2285.3,8.219e-05,2]
[422831511,1779489048000,-151.0,8.219e-05,2]
[422831512,1779489048000,-151.0,8.219e-05,2]
[422831513,1779489048000,-151.0,8.219e-05,2]
[422831514,1779489048000,-500.0,8.219e-05,2]
[422831515,1779489048000,-867.98,8.219e-05,2]
[422831516,1779489048000,-2573.56,8.219e-05,2]
[422831517,1779489048000,-500.0,8.219e-05,2]
[422831524,1779489048000,-641.76372271,8.219e-05,2]
[422831522,1779489048000,-500.0,8.219e-05,2]
[422831520,1779489048000,-500.0,8.219e-05,2]
[422831519,1779489048000,-500.0,8.219e-05,2]
[422831518,1779489048000,-1021.36,8.219e-05,2]
[422831561,1779489048000,-500.0,8.219e-05,2]
[422831523,1779489048000,-500.0,8.219e-05,2]
[422831521,1779489048000,-500.0,8.219e-05,2]
[422831526,1779489048000,-500.0,8.219e-05,2]
[422831527,1779489048000,-242.227629,8.219e-05,2]
[422831525,1779489048000,-688.91,8.219e-05,2]
[422831556,1779489048000,-500.0,8.219e-05,2]
[422831579,1779489048000,-256.373272,8.219e-05,2]
[422831550,1779489048000,-1326.96,8.219e-05,2]
[422831588,1779489048000,-500.0,8.219e-05,2]
[422831589,1779489048000,-256.373272,8.219e-05,2]
[422831577,1779489048000,-256.373272,8.219e-05,2]
[422831581,1779489048000,-256.373272,8.219e-05,2]
[422831585,1779489048000,-256.373272,8.219e-05,2]
[422831582,1779489048000,-256.373272,8.219e-05,2]
[422831580,1779489048000,-4613.0,8.219e-05,2]
[422831583,1779489048000,-256.373272,8.219e-05,2]
[422831590,1779489048000,-256.373265,8.219e-05,2]
[422831586,1779489048000,-256.373272,8.219e-05,2]
[422831591,1779489048000,-500.0,8.219e-05,2]
[422831593,1779489048000,-500.0,8.219e-05,2]
[422831594,1779489048000,-529.34,8.219e-05,2]
[422831599,1779489048000,-500.0,8.219e-05,2]
[422831600,1779489048000,-251.21265944,8.219e-05,2]
[422831598,1779489048000,-500.0,8.219e-05,2]
[422831596,1779489048000,-3637.99,8.219e-05,2]
[422831595,1779489048000,-500.0,8.219e-05,2]
[422831597,1779489048000,-867.66,8.219e-05,2]
[422831562,1779489048000,-500.0,8.219e-05,2]
[422831592,1779489048000,-669.38,8.219e-05,2]
[422831587,1779489048000,-256.373272,8.219e-05,2]
[422831584,1779489048000,-256.373272,8.219e-05,2]
[422831567,1779489048000,-256.373272,8.219e-05,2]
[422831555,1779489048000,-500.0,8.219e-05,2]
[422831578,1779489048000,-500.0,8.219e-05,2]
[422831552,1779489048000,-6282.86,8.219e-05,2]
[422831553,1779489048000,-526.47,8.219e-05,2]
[422831557,1779489048000,-500.0,8.219e-05,2]
[422831558,1779489048000,-1659.69,8.219e-05,2]
[422831560,1779489048000,-567.6,8.219e-05,2]
[422831559,1779489048000,-500.0,8.219e-05,2]
[422831573,1779489048000,-256.373272,8.219e-05,2]
[422831564,1779489048000,-500.0,8.219e-05,2]
[422831563,1779489048000,-2178.16,8.219e-05,2]
[422831554,1779489048000,-500.0,8.219e-05,2]
[422831575,1779489048000,-256.373272,8.219e-05,2]
[422831572,1779489048000,-256.373272,8.219e-05,2]
[422831569,1779489048000,-500.0,8.219e-05,2]
[422831571,1779489048000,-256.373272,8.219e-05,2]
[422831570,1779489048000,-500.0,8.219e-05,2]
[422831568,1779489048000,-256.373272,8.219e-05,2]
[422831566,1779489048000,-256.373272,8.219e-05,2]
[422831576,1779489048000,-256.373272,8.219e-05,2]
[422831574,1779489048000,-256.373272,8.219e-05,2]
[422831565,1779489048000,-2241.38,8.219e-05,2]
[422831642,1779489933000,-500.0,7.496e-05,2]
[422831646,1779489933000,-500.0,7.496e-05,2]
[422831645,1779489933000,-500.0,7.496e-05,2]
[422831644,1779489933000,-500.0,7.496e-05,2]
[422831643,1779489933000,-500.0,7.496e-05,2]
[422831641,1779489933000,-500.0,7.496e-05,2]
[422831647,1779489933000,-163.7375505,7.496e-05,2]
[422831640,1779489933000,-511.86325627,7.496e-05,2]
[422831639,1779489933000,-500.0,7.496e-05,2]
[422831634,1779489933000,-7774.59982727,7.4e-05,2]
[422831637,1779489933000,-647.48195958,7.496e-05,2]
[422831636,1779489933000,-500.0,7.496e-05,2]
[422831633,1779489933000,-3697.43296089,7.4e-05,2]
[422831629,1779489933000,-393.28651622,7.2e-05,2]
[422831632,1779489933000,-300.0,7.399e-05,2]
[422831631,1779489933000,-300.0,7.399e-05,2]
[422831628,1779489933000,-570.38349661,7.175e-05,2]
[422831630,1779489933000,-151.0,7.275e-05,2]
[422831650,1779489933000,-500.0,7.496e-05,2]
[422831638,1779489933000,-500.0,7.496e-05,2]
[422831648,1779489933000,-500.0,7.496e-05,2]
[422831635,1779489933000,-500.0,7.496e-05,2]
[422831651,1779489933000,-500.0,7.496e-05,2]
[422831649,1779489933000,-500.0,7.496e-05,2]
[422831670,1779489933000,-500.0,7.496e-05,2]
[422831668,1779489933000,-423.39542302,7.496e-05,2]
[422831669,1779489933000,-500.0,7.496e-05,2]
[422831665,1779489933000,-500.0,7.496e-05,2]
[422831667,1779489933000,-500.0,7.496e-05,2]
[422831663,1779489933000,-500.0,7.496e-05,2]
[422831664,1779489933000,-500.0,7.496e-05,2]
[422831671,1779489933000,-500.0,7.496e-05,2]
[422831661,1779489933000,-500.0,7.496e-05,2]
[422831666,1779489933000,-500.0,7.496e-05,2]
[422831660,1779489933000,-500.0,7.496e-05,2]
[422831662,1779489933000,-500.0,7.496e-05,2]
[422831652,1779489933000,-467.1023814,7.496e-05,2]
[422831654,1779489933000,-500.0,7.496e-05,2]
[422831656,1779489933000,-500.0,7.496e-05,2]
[422831653,1779489933000,-500.0,7.496e-05,2]
[422831658,1779489933000,-500.0,7.496e-05,2]
[422831657,1779489933000,-500.0,7.496e-05,2]
[422831659,1779489933000,-500.0,7.496e-05,2]
[422831655,1779489933000,-500.0,7.496e-05,2]
[422831684,1779489934000,-500.0,7.496e-05,2]
[422831690,1779489934000,-500.0,7.496e-05,2]
[422831692,1779489934000,-500.0,7.496e-05,2]
[422831691,1779489934000,-500.0,7.496e-05,2]
[422831688,1779489934000,-500.0,7.496e-05,2]
[422831683,1779489934000,-500.0,7.496e-05,2]
[422831687,1779489934000,-500.0,7.496e-05,2]
[422831686,1779489934000,-500.0,7.496e-05,2]
[422831685,1779489934000,-539.27865087,7.496e-05,2]
[422831672,1779489934000,-500.0,7.496e-05,2]
[422831680,1779489934000,-500.0,7.496e-05,2]
[422831682,1779489934000,-500.0,7.496e-05,2]
[422831678,1779489934000,-500.0,7.496e-05,2]
[422831679,1779489934000,-500.0,7.496e-05,2]
[422831676,1779489934000,-500.0,7.496e-05,2]
[422831675,1779489934000,-500.0,7.496e-05,2]
[422831674,1779489934000,-500.0,7.496e-05,2]
[422831677,1779489934000,-500.0,7.496e-05,2]
[422831673,1779489934000,-500.0,7.496e-05,2]
[422831693,1779489934000,-500.0,7.496e-05,2]
[422831681,1779489934000,-500.0,7.496e-05,2]
[422831694,1779489934000,-500.0,7.496e-05,2]
[422831689,1779489934000,-500.0,7.496e-05,2]
[422831695,1779489934000,-500.0,7.496e-05,2]
[422831696,1779489934000,-500.0,7.496e-05,2]
[422831717,1779489934000,-500.0,8.218e-05,2]
[422831718,1779489934000,-500.0,8.218e-05,2]
[422831716,1779489934000,-500.0,8.218e-05,2]
[422831715,1779489934000,-500.0,8.218e-05,2]
[422831713,1779489934000,-500.0,8.218e-05,2]
[422831712,1779489934000,-594.0,8.2e-05,2]
[422831710,1779489934000,-196.0,8.139e-05,2]
[422831709,1779489934000,-151.0,8.069e-05,2]
[422831711,1779489934000,-420.0,8.139e-05,2]
[422831707,1779489934000,-582.20172412,8e-05,2]
[422831714,1779489934000,-500.0,8.218e-05,2]
[422831705,1779489934000,-185.0,7.914e-05,2]
[422831708,1779489934000,-198.57804001,8.055e-05,2]
[422831700,1779489934000,-161.72364698,7.5e-05,2]
[422831697,1779489934000,-209.05713793,7.496e-05,2]
[422831699,1779489934000,-238.404,7.497e-05,2]
[422831701,1779489934000,-160.0,7.5e-05,2]
[422831698,1779489934000,-500.0,7.496e-05,2]
[422831704,1779489934000,-151.0,7.813e-05,2]
[422831702,1779489934000,-160.0,7.5e-05,2]
[422831706,1779489934000,-443.0,7.914e-05,2]
[422831703,1779489934000,-500.0,7.808e-05,2]
[422831731,1779489935000,-500.0,8.219e-05,2]